fUST/lending_fUST_20240527
["ID","MTS","AMOUNT","RATE_DAILY","PERIOD"]
[327986091,1716750642590,-1617.90100153,0.000225,2]
[327986092,1716750642599,-166.666666,0.00022944,2]
[327986093,1716750642608,-809.12528778,0.00023,2]
[327986106,1716750646797,-719.79,0.00023,2]
[327986107,1716750646809,-2289.17221535,0.00023,2]
[327986108,1716750646821,-879.06124621,0.00023,2]
[327986109,1716750646830,-166.666666,0.00023456,2]
[327986110,1716750646840,-154.53058877,0.00023935,2]
[327986111,1716750646849,-166.666666,0.00023969,2]
[327986112,1716750646859,-187.39912452,0.00024382,2]
[327986113,1716750646869,-162.5,0.00024384,2]
[327986114,1716750646878,-676.875,0.00024384,2]
[327986115,1716750646888,-166.666666,0.00024482,2]
[327986116,1716750646897,-5193.59328367,0.00025,2]
[327986117,1716751240054,403.88807297,9.999e-05,2]
[327986118,1716751319368,154.9690062,9.999e-05,2]
[327986119,1716751333271,227.26346521,9.999e-05,2]
[327986253,1716751835173,-150.0,0.000189,2]
[327986255,1716751835183,-162.838296,0.00019242,2]
[327986257,1716751835193,-189.78764496,0.00019899,2]
[327986259,1716751835203,-9569.20149698,0.00019999,2]
[327986260,1716751835213,-181.11191058,0.0002,2]
[327986262,1716751835222,-527.75391758,0.0002,4]
[327986263,1716751835232,-1143.89970046,0.0002,2]
[327986265,1716751835241,-414.72719987,0.00020903,2]
[327986266,1716751835251,-725.95,0.00020904,3]
[327986268,1716751835261,-836.12249757,0.00020911,2]
[327986270,1716751835270,-329.58928643,0.00020912,2]
[327986272,1716751835280,-2344.21273099,0.00020913,2]
[327986283,1716751838132,-40913.91678473,0.00020913,2]
[327986285,1716751838144,-1673.37981578,0.00020913,2]
[327986291,1716751842095,-11243.02246756,0.00020913,2]
[327986355,1716751843196,-3060.31917962,0.00020913,2]
[327986357,1716751843207,-154.53058877,0.00021518,2]
[327986359,1716751843216,-169.61011297,0.00021618,2]
[327986361,1716751843226,-166.666666,0.00021918,2]
[327986363,1716751843235,-159.8994937,0.00022,2]
[327986365,1716751843244,-151.0,0.0002224,3]
[327986366,1716751843254,-166.666666,0.00022431,2]
[327986368,1716751843263,-166.666666,0.00022944,2]
[327986370,1716751843274,-4697.14874934,0.00023,2]
[327986372,1716751843283,-166.666666,0.00023456,2]
[327986374,1716751843293,-166.666666,0.00023969,2]
[327986376,1716751843302,-187.39912452,0.00024,2]
[327986378,1716751843312,-643.03125,0.00024384,2]
[327986380,1716751843322,-748.732589,0.00024384,2]
[327986382,1716751843331,-166.666666,0.00024482,2]
[327986384,1716751843340,-4227.93462558,0.00024692,2]
[327986386,1716751843350,-8182.14463212,0.00025,2]
[327986388,1716751843359,-174.77770949,0.00025,2]
[327986390,1716751843368,-401.16149513,0.00025,2]
[327986392,1716751843377,-3981.96955357,0.00025,2]
[327986394,1716751843386,-154.53058877,0.00025979,2]
[327986396,1716751843395,-155.50462427,0.00026728,2]
[327986398,1716751843405,-267.0,0.000276,2]
[327986399,1716751843415,-221.83484626,0.00028,2]
[327986400,1716751843424,-752.64480453,0.00028482,3]
[327986401,1716751843433,-8210.94,0.0002859,3]
[327986403,1716751843443,-300.0,0.000286,2]
[327986405,1716751843452,-2831.3092338,0.0002877,2]
[327986406,1716751843461,-761.19376137,0.0002877,2]
[327986408,1716751843471,-456.67881276,0.0002877,2]
[327986409,1716751843481,-225.55333425,0.0002877,2]
[327986410,1716751843491,-7980.38300329,0.00028807,2]
[327986411,1716751843500,-3572.92196628,0.00028943,2]
[327986412,1716751843510,-415.18659282,0.00029,2]
[327986413,1716751843519,-290.1462119,0.0002926,2]
[327986414,1716751843528,-306.0249217,0.00029283,2]
[327986415,1716751843538,-306.0249217,0.00029314,2]
[327986416,1716751843547,-306.0249217,0.00029367,2]
[327986417,1716751843556,-900.64214666,0.000294,2]
[327986418,1716751844207,-6149.38760541,0.000294,2]
[327986419,1716751844217,-3572.92196628,0.00029432,2]
[327986420,1716751844226,-300.0,0.000296,2]
[327986421,1716751844235,-2000.0,0.000296,2]
[327986422,1716751844245,-152.73210619,0.00029634,2]
[327986423,1716751844255,-1591.87201696,0.00029672,2]
[327986424,1716751844264,-239.37725093,0.00029696,2]
[327986425,1716751844273,-303.17943415,0.00029696,2]
[327986426,1716751844282,-181.44983187,0.00029696,2]
[327986427,1716751844292,-4674.96627996,0.00029697,2]
[327986428,1716751844301,-155.93650779,0.00029698,2]
[327986429,1716751844311,-1013.48861344,0.00029698,2]
[327986430,1716751844321,-2679.91725099,0.00029698,2]
[327986431,1716751844330,-309.72126324,0.00029698,2]
[327986432,1716751844340,-157.12420045,0.00029698,2]
[327986433,1716751844349,-190.61324152,0.00029698,2]
[327986434,1716751844359,-21479.32465754,0.00029698,2]
[327986435,1716751844370,-3438.62585664,0.00029698,2]
[327986436,1716751844379,-5031.06516386,0.00029699,2]
[327986437,1716751844389,-88888.0,0.000297,3]
[327986438,1716751844399,-1591.87201696,0.00029712,2]
[327986439,1716751844408,-306.0249217,0.00029714,2]
[327986440,1716751844418,-306.0249217,0.00029759,2]
[327986441,1716751844427,-209733.44334759,0.000298,2]
[327986442,1716751844438,-179000.0,0.000299,2]
[327986443,1716751844448,-151.0,0.000299,2]
[327986444,1716751844459,-151.0,0.000299,2]
[327986445,1716751844469,-151.0,0.000299,2]
[327986446,1716751844478,-151.0,0.000299,2]
[327986447,1716751844488,-3572.92196628,0.00029921,2]
[327986448,1716751844497,-306.0249217,0.00029941,2]
[327986449,1716751844506,-18221.17296281,0.0003,2]
[327986451,1716751844516,-154.93802479,0.0003,4]
[327986453,1716751844525,-17248.45176392,0.0003,10]
[327986455,1716751844535,-22000.50085484,0.0003,2]
[327986457,1716751844545,-468.39541763,0.0003,4]
[327986459,1716751844555,-2878.96295026,0.0003,2]
[327986461,1716751844564,-567.96274621,0.0003,2]
[327986463,1716751844574,-2000.0,0.0003,4]
[327986465,1716751844583,-2177.55715995,0.0003,3]
[327986467,1716751844593,-151.0,0.0003,2]
[327986469,1716751844603,-151.0,0.0003,2]
[327986471,1716751844612,-265.0,0.0003,2]
[327986473,1716751844622,-151.0,0.0003,2]
[327986475,1716751844632,-21084.06769273,0.000301,7]
[327986477,1716751844642,-160.0,0.000301,2]
[327986479,1716751844653,-1591.87201696,0.00030121,7]
[327986481,1716751844663,-152.21925655,0.00030132,7]
[327986483,1716751844674,-869.102125,0.00030137,2]
[327986485,1716751844684,-869.102125,0.00030137,2]
[327986487,1716751844694,-869.102125,0.00030137,2]
[327986489,1716751844705,-869.102125,0.00030137,2]
[327986491,1716751844715,-151.0,0.00030137,2]
[327986493,1716751844726,-151.0,0.00030137,2]
[327986495,1716751844736,-191.57806988,0.00030137,4]
[327986497,1716751844747,-204.95026634,0.00030137,4]
[327986499,1716751844758,-500.0,0.00030137,2]
[327986501,1716751844769,-152.73210619,0.00030187,7]
[327986503,1716751844780,-1591.87201696,0.00030223,7]
[327986505,1716751844791,-306.0249217,0.00030232,7]
[327986506,1716751844801,-643.03125,0.0003031,2]
[327986508,1716751844812,-748.732589,0.0003031,2]
[327986522,1716751844942,-306.0249217,0.00030355,7]
[327986525,1716751844952,-306.0249217,0.00030362,7]
[327986526,1716751844962,-3572.92196628,0.00030409,2]
[327986528,1716751844971,-154.53058877,0.00030439,2]
[327986531,1716751844986,-1591.87201696,0.00030462,7]
[327986533,1716751845004,-1591.87201696,0.00030499,7]
[327986534,1716751845017,-1591.87201696,0.00030505,7]
[327986537,1716751845027,-306.0249217,0.00030546,7]
[327986538,1716751845036,-300.0,0.000306,3]
[327986541,1716751845045,-1591.87201696,0.00030621,7]
[327986543,1716751845056,-1591.87201696,0.00030655,7]
[327986545,1716751845066,-306.0249217,0.00030854,7]
[327986546,1716751845076,-3572.92196628,0.00030898,2]
[327986548,1716751845085,-1591.87201696,0.00030941,7]
[327986551,1716751845096,-160.0,0.00030959,3]
[327986553,1716751845106,-200.47373201,0.00030996,4]
[327986554,1716751845115,-155.01275323,0.00030997,4]
[327986556,1716751845124,-14000.0,0.00030998,2]
[327986558,1716751845134,-215.09263403,0.00030998,4]
[327986560,1716751845143,-241.3058611,0.00030998,4]
[327986562,1716751845153,-1685.86683033,0.00030998,4]
[327986564,1716751845162,-465.59242832,0.00030998,30]
[327986566,1716751845172,-1899.42450217,0.00030998,4]
[327986568,1716751845181,-309.36358991,0.00030998,2]
[327986570,1716751845191,-284.37507147,0.00030998,4]
[327986572,1716751845200,-246.0497949,0.00030998,4]
[327986574,1716751845209,-151.0,0.00030998,2]
[327986576,1716751845219,-151.0,0.00030998,2]
[327986578,1716751845228,-869.102125,0.00030998,2]
[327986580,1716751845240,-869.102125,0.00030998,2]
[327986582,1716751845250,-151.0,0.00030998,2]
[327986584,1716751845260,-151.0,0.00030998,2]
[327986586,1716751845270,-1000.0,0.00031,31]
[327986588,1716751845281,-1974.0178707,0.00031,2]
[327986590,1716751845291,-77473.09893303,0.00031,2]
[327986592,1716751845302,-200.0,0.00031,2]
[327986594,1716751845312,-1627.24101116,0.00031,7]
[327986596,1716751845324,-151.0,0.00031,2]
[327986598,1716751845334,-151.0,0.00031,2]
[327986600,1716751845345,-869.102125,0.00031,2]
[327986602,1716751845355,-869.102125,0.00031,2]
[327986604,1716751845366,-151.0,0.00031,2]
[327986606,1716751845376,-387.11499206,0.00031,2]
[327986608,1716751845386,-387.11499206,0.00031,2]
[327986610,1716751845396,-387.11499206,0.00031,2]
[327986612,1716751845407,-387.11499206,0.00031,2]
[327986614,1716751845418,-387.11499206,0.00031,2]
[327986616,1716751845428,-387.11499206,0.00031,2]
[327986619,1716751845439,-387.11499206,0.00031,2]
[327986622,1716751845450,-387.11499206,0.00031,2]
[327986625,1716751845460,-387.11499206,0.00031,2]
[327986628,1716751845471,-387.11499206,0.00031,2]
[327986631,1716751845482,-151.0,0.00031,2]
[327986634,1716751845492,-387.11499206,0.00031,2]
[327986637,1716751845502,-387.11499206,0.00031,2]
[327986642,1716751845517,-387.11499206,0.00031,2]
[327986645,1716751845528,-387.11499206,0.00031,2]
[327986648,1716751845539,-387.11499206,0.00031,2]
[327986651,1716751845550,-387.11499206,0.00031,2]
[327986655,1716751845560,-387.11499206,0.00031,2]
[327986658,1716751845571,-387.11499206,0.00031,2]
[327986661,1716751845582,-387.11499206,0.00031,2]
[327986664,1716751845592,-387.11499,0.00031,2]
[327986667,1716751845603,-306.0249217,0.00031044,7]
[327986670,1716751845613,-1591.87201696,0.00031079,7]
[327986673,1716751845623,-152.21925655,0.00031079,7]
[327986677,1716751845634,-1591.87201696,0.00031144,7]
[327986680,1716751845644,-1591.87201696,0.00031168,7]
[327986683,1716751845655,-1591.87201696,0.00031189,7]
[327986686,1716751845665,-1591.87201696,0.00031221,7]
[327986689,1716751845676,-306.0249217,0.00031293,7]
[327986691,1716751845688,-152.21925655,0.00031318,7]
[327986693,1716751845698,-306.0249217,0.00031349,7]
[327986695,1716751845708,-1591.87201696,0.00031434,7]
[327986697,1716751845719,-160.0,0.00031473,4]
[327986699,1716751845728,-5000.0,0.000315,2]
[327986701,1716751845738,-3000.0,0.000315,8]
[327986704,1716751845750,-3000.0,0.0003151,8]
[327986706,1716751845760,-3000.0,0.0003152,8]
[327986710,1716751845771,-3000.0,0.0003153,8]
[327986714,1716751845780,-3000.0,0.0003154,8]
[327986717,1716751845790,-3000.0,0.0003155,8]
[327986719,1716751845802,-3000.0,0.0003156,8]
[327986720,1716751845811,-3000.0,0.0003157,8]
[327986723,1716751845821,-3000.0,0.0003158,8]
[327986725,1716751845830,-3000.0,0.0003159,8]
[327986727,1716751845840,-306.0249217,0.0003159,7]
[327986729,1716751845850,-300.0,0.000316,5]
[327986731,1716751845860,-3000.0,0.000316,8]
[327986733,1716751845870,-3000.0,0.0003161,8]
[327986735,1716751845879,-3000.0,0.0003162,8]
[327986737,1716751845889,-3000.0,0.0003163,8]
[327986739,1716751845899,-869.102125,0.0003163,2]
[327986741,1716751845909,-869.102125,0.0003163,2]
[327986743,1716751845919,-151.0,0.0003163,2]
[327986745,1716751845928,-151.0,0.0003163,2]
[327986747,1716751845938,-3000.0,0.0003164,8]
[327986749,1716751845947,-161.20180174,0.00031648,7]
[327986751,1716751845959,-3000.0,0.0003165,8]
[327986753,1716751845968,-152.21925655,0.00031657,7]
[327986755,1716751845979,-3000.0,0.0003166,9]
[327986757,1716751845991,-151.0,0.0003166,2]
[327986759,1716751846001,-151.0,0.0003166,2]
[327986761,1716751846010,-3000.0,0.0003167,9]
[327986763,1716751846021,-3000.0,0.0003168,9]
[327986765,1716751846032,-306.0249217,0.00031687,7]
[327986766,1716751846042,-306.0249217,0.00031689,7]
[327986768,1716751846051,-3000.0,0.0003169,9]
[327986770,1716751846062,-157.65123718,0.000317,7]
[327986773,1716751846072,-3000.0,0.000317,9]
[327986775,1716751846082,-3000.0,0.0003171,9]
[327986777,1716751846092,-3000.0,0.0003172,9]
[327986779,1716751846101,-155.65289383,0.00031724,7]
[327986781,1716751846111,-306.0249217,0.00031724,7]
[327986783,1716751846120,-3000.0,0.0003173,9]
[327986785,1716751846130,-152.21925655,0.00031739,7]
[327986786,1716751846140,-3000.0,0.0003174,9]
[327986787,1716751846150,-3000.0,0.0003175,9]
[327986788,1716751846160,-3000.0,0.0003176,9]
[327986789,1716751846170,-3000.0,0.0003177,9]
[327986790,1716751846180,-13244.17231223,0.00031777,120]
[327986791,1716751846192,-3000.0,0.0003178,9]
[327986792,1716751846201,-3000.0,0.0003179,9]
[327986793,1716751846211,-3000.0,0.000318,9]
[327986794,1716751846221,-869.102125,0.000318,2]
[327986795,1716751846231,-869.102125,0.000318,2]
[327986796,1716751846240,-151.0,0.000318,2]
[327986797,1716751846250,-151.0,0.000318,2]
[327986798,1716751846260,-3000.0,0.0003181,9]
[327986799,1716751846271,-3000.0,0.0003182,9]
[327986800,1716751846281,-151.0,0.0003182,2]
[327986802,1716751846291,-151.0,0.0003182,2]
[327986804,1716751846301,-3000.0,0.0003183,9]
[327986806,1716751846310,-1591.87201696,0.00031834,7]
[327986807,1716751846320,-1591.87201696,0.00031839,7]
[327986810,1716751846329,-3000.0,0.0003184,9]
[327986812,1716751846339,-194.93294492,0.00031848,7]
[327986814,1716751846349,-3000.0,0.0003185,9]
[327986816,1716751846359,-3000.0,0.0003186,9]
[327986818,1716751846368,-3000.0,0.0003187,9]
[327986819,1716751846378,-3000.0,0.0003188,9]
[327986822,1716751846388,-306.0249217,0.0003188,7]
[327986823,1716751846397,-3000.0,0.0003189,9]
[327986825,1716751846407,-25000.0,0.000319,30]
[327986828,1716751846416,-3000.0,0.000319,9]
[327986830,1716751846426,-3000.0,0.0003191,10]
[327986832,1716751846435,-3000.0,0.0003192,10]
[327986834,1716751846445,-3000.0,0.0003193,10]
[327986835,1716751846455,-869.102125,0.0003193,2]
[327986838,1716751846464,-869.102125,0.0003193,2]
[327986839,1716751846474,-151.0,0.0003193,2]
[327986841,1716751846483,-171.362675,0.0003193,2]
[327986844,1716751846493,-3000.0,0.0003194,10]
[327986846,1716751846503,-306.0249217,0.00031941,7]
[327986848,1716751846513,-152.73210619,0.00031946,7]
[327986850,1716751846523,-3000.0,0.0003195,10]
[327986852,1716751846533,-5223.038496,0.0003196,10]
[327986854,1716751846543,-151.0,0.0003196,2]
[327986855,1716751846552,-151.0,0.0003196,2]
[327986858,1716751846562,-160.0,0.00031987,5]
[327986859,1716751846571,-1154.57202998,0.00032,4]
[327986862,1716751846581,-1000.0,0.00032,32]
[327986864,1716751846591,-2000.0,0.00032,120]
[327986866,1716751846601,-89679.73126484,0.00032,2]
[327986930,1716751847241,-581.0,0.00032,2]
[327986933,1716751847253,-712.0,0.00032,2]
[327987175,1716753043993,-414.72719987,0.0002066,2]
[327987176,1716753044003,-1143.89970046,0.00020661,2]
[327987178,1716753044013,-163.345509,0.00020673,2]
[327987180,1716753044023,-166.666666,0.00021918,2]
[327987182,1716753044033,-166.666666,0.00022431,2]
[327987183,1716753044044,-527.75391758,0.00022525,4]
[327987184,1716753044054,-151.0,0.00022529,3]
[327987185,1716753044064,-166.666666,0.00022944,2]
[327987186,1716753044180,-166.666666,0.00023456,2]
[327987187,1716753044197,-166.666666,0.00023969,2]
[327987188,1716753044207,-2699.32279097,0.00023998,2]
[327987189,1716753044616,-1997.82595837,0.00023998,2]
[327987190,1716753044628,-268.44772272,0.00023999,2]
[327987194,1716753150890,449.54262902,9.999e-05,2]
[327987196,1716753208802,299.71956484,9.999e-05,2]
[327987197,1716753226729,299.49407518,9.999e-05,2]
[327987198,1716753682481,1044.31672066,9.999e-05,2]
[327987199,1716753690627,239.04002635,9.999e-05,2]
[327987200,1716753735817,156.6263305,9.999e-05,2]
[327987201,1716754146363,155.0,9.999e-05,2]
[327987252,1716754232608,-283.89725164,0.000137,2]
[327987253,1716754232617,-156.6263305,0.00019999,2]
[327987254,1716754232627,-115.04124485,0.0002,2]
[327987289,1716754238349,-1901.804382,0.00013699,2]
[327987290,1716754238359,-1028.85845561,0.0002,2]
[327987291,1716754238368,-411.20287558,0.00020912,2]
[327987292,1716754238379,-4129.12623537,0.00020912,2]
[327987293,1716754238389,-166.666666,0.00021918,2]
[327987294,1716754238398,-166.666666,0.00022431,2]
[327987295,1716754238407,-166.666666,0.00022944,2]
[327987296,1716754238417,-164.945318,0.00023289,2]
[327987297,1716754238426,-166.666666,0.00023456,2]
[327987298,1716754238435,-4133.81372513,0.00023822,2]
[327987299,1716754238444,-151.545,0.00023907,2]
[327987300,1716754238453,-166.666666,0.00023969,2]
[327987301,1716754238463,-868.95481476,0.00023999,2]
[327987303,1716754238472,-3981.96955357,0.00023999,2]
[327987305,1716754238481,-8297.54070182,0.00023999,2]
[327987307,1716754238490,-181.11191058,0.00024,2]
[327987309,1716754238498,-502.587455,0.00024384,2]
[327987311,1716754238508,-750.0,0.00024384,2]
[327987313,1716754238517,-166.666666,0.00024482,2]
[327987314,1716754238526,-211.23900439,0.000249,2]
[327987315,1716754238535,-13375.73791579,0.00025,2]
[327987316,1716754238544,-401.16149513,0.00025203,2]
[327987317,1716754238553,-174.77770949,0.00025204,2]
[327987318,1716754238562,-496.0,0.00025697,2]
[327987319,1716754238572,-211.23900438,0.000279,2]
[327987320,1716754238581,-591.33036742,0.000279,2]
[327987321,1716754238590,-6842.45,0.0002798,3]
[327987322,1716754238599,-5702.04,0.0002798,3]
[327987323,1716754238608,-2954.91451028,0.0002798,3]
[327987324,1716754238631,-1029.5663358,0.0002798,3]
[327987366,1716754268753,-762.7232337,0.00033296,120]
[327987367,1716754268781,-500.0,0.00033296,30]
[327987368,1716754268806,-500.0,0.00033296,30]
[327987369,1716754268833,-500.0,0.00033296,30]
[327987370,1716754268856,-500.0,0.00033296,30]
[327987371,1716754268879,-500.0,0.00033296,30]
[327987372,1716754268902,-500.0,0.00033296,30]
[327987373,1716754268925,-500.0,0.00033296,30]
[327987374,1716754268950,-500.0,0.00033296,30]
[327987375,1716754268973,-500.0,0.00033296,30]
[327987376,1716754268995,-500.0,0.00033296,30]
[327987377,1716754269022,-500.0,0.00033296,30]
[327987378,1716754269046,-500.0,0.00033296,30]
[327987379,1716754269069,-519.1029006,0.00033296,30]
[327987380,1716754269093,-523.59,0.00033296,30]
[327987381,1716754269117,-523.59,0.00033296,30]
[327987382,1716754269141,-523.59,0.00033296,30]
[327987383,1716754269165,-523.59,0.00033296,30]
[327987384,1716754269188,-523.59,0.00033296,30]
[327987385,1716754269211,-523.59,0.00033296,30]
[327987386,1716754269234,-523.59,0.00033296,30]
[327987387,1716754269257,-523.59,0.00033296,30]
[327987388,1716754269280,-523.59,0.00033296,30]
[327987389,1716754269302,-523.59,0.00033296,30]
[327987390,1716754269325,-523.59,0.00033296,30]
[327987391,1716754269348,-523.59,0.00033296,30]
[327987392,1716754269372,-523.59,0.00033296,30]
[327987393,1716754269396,-523.59,0.00033296,30]
[327987394,1716754269419,-523.59,0.00033296,30]
[327987395,1716754269442,-523.59,0.00033296,30]
[327987396,1716754269465,-523.59,0.00033296,30]
[327987397,1716754269488,-523.59,0.00033296,30]
[327987398,1716754269512,-523.59,0.00033296,30]
[327987399,1716754269535,-523.59,0.00033296,30]
[327987400,1716754269557,-523.59,0.00033296,30]
[327987401,1716754269580,-523.59,0.00033296,30]
[327987402,1716754269603,-523.59,0.00033296,30]
[327987403,1716754269626,-523.61989886,0.00033296,30]
[327987404,1716754269650,-501.47773713,0.00033296,30]
[327987405,1716754269674,-308.91008045,0.00033296,30]
[327987406,1716754269698,-504.97623892,0.00033296,30]
[327987407,1716754269721,-500.0,0.00033296,30]
[327987408,1716754269744,-500.0,0.00033296,30]
[327987409,1716754269768,-500.0,0.00033296,30]
[327987410,1716754269905,-523.49538796,0.00033296,30]
[327987411,1716754269929,-500.0,0.00033296,30]
[327987412,1716754269954,-500.0,0.00033296,30]
[327987413,1716754269977,-500.0,0.00033296,30]
[327987414,1716754270004,-475.89668304,0.00033296,30]
[327987415,1716754270029,-500.0,0.00033296,30]
[327987416,1716754270054,-500.0,0.00033296,30]
[327987417,1716754270079,-500.0,0.00033296,30]
[327987418,1716754270102,-500.0,0.00033296,30]
[327987419,1716754270127,-500.0,0.00033296,30]
[327987420,1716754270152,-500.0,0.00033296,30]
[327987421,1716754270176,-500.0,0.00033296,30]
[327987422,1716754270200,-500.0,0.00033296,30]
[327987423,1716754270223,-500.0,0.00033296,30]
[327987424,1716754270246,-500.0,0.00033296,30]
[327987425,1716754270269,-500.0,0.00033296,30]
[327987426,1716754270292,-642.84799382,0.00033296,30]
[327987427,1716754270316,-500.0,0.00033296,30]
[327987428,1716754270339,-500.0,0.00033296,30]
[327987429,1716754270362,-514.93234929,0.00033296,30]
[327987430,1716754270385,-501.6741984,0.00033296,30]
[327987431,1716754270408,-633.76,0.00033296,30]
[327987432,1716754270432,-633.76,0.00033296,30]
[327987433,1716754270456,-633.76,0.00033296,30]
[327987434,1716754270480,-633.76,0.00033296,30]
[327987435,1716754270503,-633.76,0.00033296,30]
[327987436,1716754270527,-633.76,0.00033296,30]
[327987437,1716754270552,-633.76,0.00033296,30]
[327987438,1716754270576,-633.76,0.00033296,30]
[327987439,1716754270601,-570.03,0.00033296,30]
[327987440,1716754270626,-633.76,0.00033296,30]
[327987441,1716754270649,-570.03,0.00033296,30]
[327987442,1716754270674,-633.76,0.00033296,30]
[327987443,1716754270697,-570.03,0.00033296,30]
[327987444,1716754270720,-633.76,0.00033296,30]
[327987445,1716754270745,-570.03,0.00033296,30]
[327987446,1716754270768,-633.76,0.00033296,30]
[327987447,1716754270793,-570.03,0.00033296,30]
[327987448,1716754270816,-633.76,0.00033296,30]
[327987449,1716754270840,-570.03,0.00033296,30]
[327987450,1716754270864,-633.76,0.00033296,30]
[327987451,1716754270888,-570.03,0.00033296,30]
[327987452,1716754270911,-633.76,0.00033296,30]
[327987453,1716754270934,-570.03,0.00033296,30]
[327987454,1716754270956,-633.76,0.00033296,30]
[327987455,1716754270979,-570.03,0.00033296,30]
[327987456,1716754271006,-633.76,0.00033296,30]
[327987457,1716754271030,-570.03,0.00033296,30]
[327987458,1716754271054,-633.76,0.00033296,30]
[327987459,1716754271078,-570.03,0.00033296,30]
[327987460,1716754271105,-633.76,0.00033296,30]
[327987461,1716754271129,-570.03,0.00033296,30]
[327987462,1716754271152,-633.76,0.00033296,30]
[327987463,1716754271176,-570.03,0.00033296,30]
[327987464,1716754271203,-633.76,0.00033296,30]
[327987465,1716754271226,-570.03,0.00033296,30]
[327987466,1716754271249,-633.76,0.00033296,30]
[327987467,1716754271275,-570.03,0.00033296,30]
[327987468,1716754271298,-633.76,0.00033296,30]
[327987469,1716754271320,-633.93468634,0.00033296,30]
[327987470,1716754271343,-570.03,0.00033296,30]
[327987471,1716754271365,-570.03,0.00033296,30]
[327987472,1716754271388,-570.03,0.00033296,30]
[327987473,1716754271411,-500.0,0.00033296,30]
[327987474,1716754271434,-500.0,0.00033296,30]
[327987475,1716754271458,-570.03,0.00033296,30]
[327987476,1716754271481,-570.03,0.00033296,30]
[327987477,1716754271506,-500.0,0.00033296,30]
[327987478,1716754271529,-570.03,0.00033296,30]
[327987479,1716754271553,-562.33649262,0.00033296,30]
[327987480,1716754271678,-500.0,0.00033296,30]
[327987481,1716754271702,-570.03,0.00033296,30]
[327987482,1716754271726,-500.0,0.00033296,30]
[327987483,1716754271748,-570.03,0.00033296,30]
[327987484,1716754271770,-500.0,0.00033296,30]
[327987485,1716754271794,-570.14496209,0.00033296,30]
[327987486,1716754271817,-500.0,0.00033296,30]
[327987487,1716754271839,-500.0,0.00033296,30]
[327987488,1716754271862,-500.0,0.00033296,30]
[327987489,1716754271885,-397.82200967,0.00033296,30]
[327987490,1716754271907,-670.51,0.00033296,30]
[327987491,1716754271929,-670.51,0.00033296,30]
[327987492,1716754271953,-670.51,0.00033296,30]
[327987493,1716754271976,-670.51,0.00033296,30]
[327987494,1716754272001,-670.51,0.00033296,30]
[327987495,1716754272028,-670.51,0.00033296,30]
[327987496,1716754272053,-670.51,0.00033296,30]
[327987497,1716754272077,-670.51,0.00033296,30]
[327987498,1716754272100,-670.51,0.00033296,30]
[327987499,1716754272125,-500.0,0.00033296,30]
[327987500,1716754272150,-670.51,0.00033296,30]
[327987501,1716754272175,-507.98113334,0.00033296,30]
[327987502,1716754272199,-670.51,0.00033296,30]
[327987503,1716754272221,-670.51,0.00033296,30]
[327987504,1716754272243,-670.51,0.00033296,30]
[327987505,1716754272266,-670.51,0.00033296,30]
[327987506,1716754272288,-670.51,0.00033296,30]
[327987507,1716754272311,-670.51,0.00033296,30]
[327987508,1716754272335,-437.43376531,0.00033296,30]
[327987509,1716754272358,-670.51,0.00033296,30]
[327987510,1716754272382,-670.51,0.00033296,30]
[327987511,1716754272405,-573.11,0.00033296,30]
[327987512,1716754272428,-670.51,0.00033296,30]
[327987513,1716754272451,-573.11,0.00033296,30]